fUSD/lending_fUSD_20260530
["ID","MTS","AMOUNT","RATE_DAILY","PERIOD"]
[423401261,1780084672000,-500.0,0.00041095,120]
[423401254,1780084672000,-500.0,0.00041095,120]
[423401255,1780084672000,-500.0,0.00041095,120]
[423401253,1780084672000,-500.0,0.00041095,120]
[423401257,1780084672000,-500.0,0.00041095,120]
[423401260,1780084672000,-500.0,0.00041095,120]
[423401272,1780084672000,-500.0,0.00041095,120]
[423401263,1780084672000,-500.0,0.00041095,120]
[423401271,1780084672000,-500.0,0.00041095,120]
[423401269,1780084672000,-500.0,0.00041095,120]
[423401270,1780084672000,-500.0,0.00041095,120]
[423401268,1780084672000,-500.0,0.00041095,120]
[423401262,1780084672000,-500.0,0.00041095,120]
[423401266,1780084672000,-500.0,0.00041095,120]
[423401264,1780084672000,-500.0,0.00041095,120]
[423401265,1780084672000,-500.0,0.00041095,120]
[423401267,1780084672000,-500.0,0.00041095,120]
[423401282,1780084673000,-500.0,0.00041095,120]
[423401274,1780084673000,-500.0,0.00041095,120]
[423401275,1780084673000,-500.0,0.00041095,120]
[423401276,1780084673000,-500.0,0.00041095,120]
[423401277,1780084673000,-1013.99,0.00041095,120]
[423401278,1780084673000,-500.0,0.00041095,120]
[423401280,1780084673000,-500.0,0.00041095,120]
[423401279,1780084673000,-500.0,0.00041095,120]
[423401281,1780084673000,-500.0,0.00041095,120]
[423401273,1780084673000,-512.21,0.00041095,120]
[423401284,1780084673000,-500.0,0.00041095,120]
[423401292,1780084673000,-500.0,0.00041095,120]
[423401291,1780084673000,-500.0,0.00041095,120]
[423401289,1780084673000,-500.0,0.00041095,120]
[423401290,1780084673000,-500.0,0.00041095,120]
[423401293,1780084673000,-500.0,0.00041095,120]
[423401287,1780084673000,-500.0,0.00041095,120]
[423401285,1780084673000,-500.0,0.00041095,120]
[423401286,1780084673000,-500.0,0.00041095,120]
[423401288,1780084673000,-5959.28,0.00041095,120]
[423401283,1780084673000,-500.0,0.00041095,120]
[423401302,1780084674000,-500.0,0.00041095,120]
[423401294,1780084674000,-500.0,0.00041095,120]
[423401296,1780084674000,-500.0,0.00041095,120]
[423401295,1780084674000,-500.0,0.00041095,120]
[423401298,1780084674000,-500.0,0.00041095,120]
[423401297,1780084674000,-500.0,0.00041095,120]
[423401300,1780084674000,-500.0,0.00041095,120]
[423401301,1780084674000,-500.0,0.00041095,120]
[423401299,1780084674000,-154.84952318,0.00041095,120]
[423401305,1780084674000,-500.0,0.00041095,120]
[423401304,1780084674000,-500.0,0.00041095,120]
[423401307,1780084674000,-287.63,0.00041095,120]
[423401306,1780084674000,-1273.89,0.00041095,120]
[423401309,1780084674000,-500.0,0.00041095,120]
[423401308,1780084674000,-500.0,0.00041095,120]
[423401311,1780084674000,-3550.789,0.00041095,120]
[423401310,1780084674000,-500.0,0.00041095,120]
[423401313,1780084674000,-3550.789,0.00041095,120]
[423401312,1780084674000,-3550.789,0.00041095,120]
[423401303,1780084674000,-500.0,0.00041095,120]
[423401320,1780084675000,-500.0,0.00041095,120]
[423401321,1780084675000,-500.0,0.00041095,120]
[423401319,1780084675000,-500.0,0.00041095,120]
[423401314,1780084675000,-500.0,0.00041095,120]
[423401323,1780084675000,-1000.0,0.00041095,30]
[423401317,1780084675000,-500.0,0.00041095,120]
[423401315,1780084675000,-1893.11,0.00041095,120]
[423401318,1780084675000,-500.0,0.00041095,120]
[423401322,1780084675000,-1000.0,0.00041095,30]
[423401316,1780084675000,-92503.28106848,0.00041095,120]
[423401324,1780084675000,-500.0,0.00041095,120]
[423401332,1780084675000,-31570.342261,0.00041095,120]
[423401333,1780084675000,-3885.639872,0.00041095,120]
[423401330,1780084675000,-1863.935647,0.00041095,120]
[423401331,1780084675000,-1863.935646,0.00041095,120]
[423401325,1780084675000,-1000.0,0.00041095,120]
[423401329,1780084675000,-1183.79,0.00041095,120]
[423401326,1780084675000,-2548.03849538,0.00041095,120]
[423401327,1780084675000,-500.0,0.00041095,120]
[423401328,1780084675000,-542.76716704,0.00041095,120]
[423401343,1780084676000,-300.0,0.00041096,120]
[423401334,1780084676000,-1002.77,0.00041095,120]
[423401336,1780084676000,-2747.46044972,0.00041095,120]
[423401337,1780084676000,-1000.0,0.00041095,120]
[423401338,1780084676000,-500.0,0.00041095,120]
[423401339,1780084676000,-1550.0,0.00041096,120]
[423401341,1780084676000,-300.0,0.00041096,120]
[423401340,1780084676000,-300.0,0.00041096,120]
[423401335,1780084676000,-613.98693305,0.00041095,120]
[423401342,1780084676000,-300.0,0.00041096,120]
[423401345,1780084676000,-300.0,0.00041096,120]
[423401346,1780084676000,-300.0,0.00041096,120]
[423401348,1780084676000,-300.0,0.00041096,120]
[423401347,1780084676000,-300.0,0.00041096,120]
[423401350,1780084676000,-300.0,0.00041096,120]
[423401349,1780084676000,-300.0,0.00041096,120]
[423401352,1780084676000,-300.0,0.00041096,120]
[423401351,1780084676000,-300.0,0.00041096,120]
[423401344,1780084676000,-300.0,0.00041096,120]
[423401359,1780084677000,-300.0,0.00041096,120]
[423401360,1780084677000,-300.0,0.00041096,120]
[423401358,1780084677000,-300.0,0.00041096,120]
[423401353,1780084677000,-300.0,0.00041096,120]
[423401355,1780084677000,-300.0,0.00041096,120]
[423401356,1780084677000,-300.0,0.00041096,120]
[423401354,1780084677000,-300.0,0.00041096,120]
[423401357,1780084677000,-300.0,0.00041096,120]
[423401361,1780084677000,-300.0,0.00041096,120]
[423401364,1780084677000,-300.0,0.00041096,120]
[423401363,1780084677000,-300.0,0.00041096,120]
[423401365,1780084677000,-300.0,0.00041096,120]
[423401367,1780084677000,-300.0,0.00041096,120]
[423401366,1780084677000,-300.0,0.00041096,120]
[423401368,1780084677000,-300.0,0.00041096,120]
[423401369,1780084677000,-300.0,0.00041096,120]
[423401370,1780084677000,-300.0,0.00041096,120]
[423401372,1780084677000,-400.0,0.00041096,120]
[423401371,1780084677000,-300.0,0.00041096,120]
[423401362,1780084677000,-300.0,0.00041096,120]
[423401380,1780084678000,-151.0,0.000412,120]
[423401377,1780084678000,-2200.0,0.00041187,120]
[423401378,1780084678000,-800.0,0.00041187,120]
[423401374,1780084678000,-1197.08999999,0.00041096,60]
[423401376,1780084678000,-603.0,0.0004115,120]
[423401373,1780084678000,-986.0,0.00041096,60]
[423401379,1780084678000,-330.0,0.00041196,90]
[423401375,1780084678000,-5025.35999998,0.00041096,120]
[423401382,1780084678000,-2146.78872042,0.00041205,30]
[423401383,1780084678000,-2146.78872042,0.00041205,30]
[423401384,1780084678000,-557.31845892,0.00041205,30]
[423401386,1780084678000,-210487.78345707,0.00041205,30]
[423401385,1780084678000,-557.31845892,0.00041205,30]
[423401388,1780084678000,-210487.78345707,0.00041205,30]
[423401387,1780084678000,-210487.78345707,0.00041205,30]
[423401390,1780084678000,-523.93398111,0.00041205,120]
[423401389,1780084678000,-210487.78345707,0.00041205,30]
[423401391,1780084678000,-520.63348904,0.00041205,120]
[423401381,1780084678000,-37961.54,0.000412,120]
[423401395,1780084679000,-341.96,0.00041205,120]
[423401392,1780084679000,-1310.6235,0.00041205,120]
[423401393,1780084679000,-195.05311299,0.00041205,120]
[423401394,1780084679000,-500.0,0.00041205,120]
[423401396,1780084679000,-500.0,0.00041205,120]
[423401397,1780084679000,-500.0,0.00041205,120]
[423401398,1780084679000,-500.0,0.00041205,120]
[423401399,1780084679000,-500.0,0.00041205,120]
[423401400,1780084679000,-504.38,0.00041205,120]
[423401401,1780084679000,-500.0,0.00041205,120]
[423401402,1780084679000,-500.0,0.00041205,120]
[423401404,1780084680000,-500.0,0.00041205,120]
[423401403,1780084680000,-1015.95,0.00041205,120]
[423401406,1780084680000,-1042.81,0.00041205,120]
[423401405,1780084680000,-500.0,0.00041205,120]
[423401407,1780084680000,-611.5,0.00041205,120]
[423401408,1780084680000,-635.66,0.00041205,120]
[423401410,1780084680000,-836.03,0.00041205,120]
[423401409,1780084680000,-500.0,0.00041205,120]
[423401412,1780084680000,-500.0,0.00041205,120]
[423401413,1780084680000,-500.0,0.00041205,120]
[423401414,1780084680000,-500.0,0.00041205,120]
[423401416,1780084680000,-500.0,0.00041205,120]
[423401415,1780084680000,-500.0,0.00041205,120]
[423401417,1780084680000,-500.0,0.00041205,120]
[423401419,1780084680000,-500.0,0.00041205,120]
[423401418,1780084680000,-1171.69,0.00041205,120]
[423401411,1780084680000,-806.76,0.00041205,120]
[423401426,1780084681000,-1588.59,0.00041205,120]
[423401421,1780084681000,-608.12,0.00041205,120]
[423401420,1780084681000,-500.0,0.00041205,120]
[423401422,1780084681000,-1221.98,0.00041205,120]
[423401423,1780084681000,-500.0,0.00041205,120]
[423401424,1780084681000,-1101.3,0.00041205,120]
[423401427,1780084681000,-500.0,0.00041205,120]
[423401425,1780084681000,-500.0,0.00041205,120]
[423401428,1780084681000,-500.0,0.00041205,120]
[423401435,1780084681000,-500.0,0.00041205,120]
[423401431,1780084681000,-667.1,0.00041205,120]
[423401430,1780084681000,-500.0,0.00041205,120]
[423401433,1780084681000,-500.0,0.00041205,120]
[423401432,1780084681000,-860.62,0.00041205,120]
[423401434,1780084681000,-950.29,0.00041205,120]
[423401429,1780084681000,-525.35,0.00041205,120]
[423401436,1780084682000,-1248.29,0.00041205,120]
[423401438,1780084682000,-500.0,0.00041205,120]
[423401437,1780084682000,-500.0,0.00041205,120]
[423401439,1780084682000,-500.0,0.00041205,120]
[423401440,1780084682000,-632.81641921,0.00041205,120]
[423401441,1780084682000,-500.0,0.00041205,120]
[423401442,1780084682000,-500.0,0.00041205,120]
[423401443,1780084682000,-1124.22,0.00041205,120]
[423401444,1780084682000,-500.0,0.00041205,120]
[423401446,1780084682000,-500.0,0.00041205,120]
[423401447,1780084682000,-500.0,0.00041205,120]
[423401448,1780084682000,-500.0,0.00041205,120]
[423401449,1780084682000,-500.0,0.00041205,120]
[423401450,1780084682000,-500.0,0.00041205,120]
[423401451,1780084682000,-558.42534747,0.00041205,120]
[423401452,1780084682000,-915.18,0.00041205,120]
[423401453,1780084682000,-500.0,0.00041205,120]
[423401445,1780084682000,-500.0,0.00041205,120]
[423401460,1780084683000,-755.09,0.00041205,120]
[423401454,1780084683000,-500.0,0.00041205,120]
[423401455,1780084683000,-500.0,0.00041205,120]
[423401457,1780084683000,-500.0,0.00041205,120]
[423401456,1780084683000,-500.0,0.00041205,120]
[423401458,1780084683000,-1834.02,0.00041205,120]
[423401461,1780084683000,-500.0,0.00041205,120]
[423401459,1780084683000,-500.0,0.00041205,120]
[423401463,1780084683000,-500.0,0.00041205,120]
[423401468,1780084683000,-500.0,0.00041205,120]
[423401469,1780084683000,-500.0,0.00041205,30]
[423401466,1780084683000,-1399.7,0.00041205,120]
[423401462,1780084683000,-500.0,0.00041205,120]
[423401465,1780084683000,-500.0,0.00041205,120]
[423401470,1780084683000,-500.0,0.00041205,120]
[423401464,1780084683000,-1397.84,0.00041205,120]
[423401467,1780084683000,-500.0,0.00041205,120]
[423401471,1780084684000,-2907.55,0.00041205,120]
[423401472,1780084684000,-1178.65,0.00041205,120]
[423401474,1780084684000,-500.0,0.00041205,120]
[423401473,1780084684000,-500.0,0.00041205,120]
[423401475,1780084684000,-500.0,0.00041205,120]
[423401477,1780084684000,-500.0,0.00041205,120]
[423401479,1780084684000,-1446.34,0.00041205,120]
[423401476,1780084684000,-500.0,0.00041205,120]
[423401481,1780084684000,-500.0,0.00041205,120]
[423401486,1780084684000,-500.0,0.00041205,120]
[423401487,1780084684000,-500.0,0.00041205,120]
[423401484,1780084684000,-500.0,0.00041205,120]
[423401478,1780084684000,-719.37,0.00041205,30]
[423401482,1780084684000,-1182.3,0.00041205,120]
[423401483,1780084684000,-704.87,0.00041205,120]
[423401480,1780084684000,-500.0,0.00041205,120]
[423401485,1780084684000,-1814.2,0.00041205,120]
[423401495,1780084685000,-500.0,0.00041205,120]
[423401490,1780084685000,-1540.81,0.00041205,120]
[423401489,1780084685000,-500.0,0.00041205,120]
[423401491,1780084685000,-507.9679236,0.00041205,120]
[423401492,1780084685000,-500.0,0.00041205,120]
[423401493,1780084685000,-500.0,0.00041205,120]
[423401494,1780084685000,-500.0,0.00041205,120]
[423401488,1780084685000,-500.0,0.00041205,120]
[423401497,1780084685000,-1561.96,0.00041205,120]
[423401499,1780084685000,-1873.4,0.00041205,120]
[423401505,1780084685000,-500.0,0.00041205,120]
[423401504,1780084685000,-500.0,0.00041205,120]
[423401502,1780084685000,-500.0,0.00041205,120]
[423401496,1780084685000,-2242.5,0.00041205,120]
[423401500,1780084685000,-500.0,0.00041205,120]
[423401501,1780084685000,-500.0,0.00041205,120]
[423401498,1780084685000,-901.75,0.00041205,120]
[423401503,1780084685000,-500.0,0.00041205,120]
[423401512,1780084686000,-502.64303253,0.00041205,120]
[423401507,1780084686000,-980.49,0.00041205,120]
[423401508,1780084686000,-500.0,0.00041205,120]
[423401509,1780084686000,-500.0,0.00041205,60]
[423401511,1780084686000,-500.0,0.00041205,120]
[423401510,1780084686000,-772.14,0.00041205,120]
[423401513,1780084686000,-3392.34,0.00041205,120]
[423401506,1780084686000,-500.0,0.00041205,90]
[423401514,1780084686000,-820.01,0.00041205,120]
[423401517,1780084686000,-500.0,0.00041205,120]
[423401516,1780084686000,-500.0,0.00041205,120]
[423401518,1780084686000,-500.0,0.00041205,120]
[423401519,1780084686000,-500.0,0.00041205,120]
[423401520,1780084686000,-500.0,0.00041205,120]
[423401521,1780084686000,-587.91,0.00041205,120]
[423401522,1780084686000,-500.0,0.00041205,120]
[423401523,1780084686000,-917.29,0.00041205,120]
[423401515,1780084686000,-500.0,0.00041205,120]
[423401529,1780084687000,-1095.92,0.00041205,120]
[423401530,1780084687000,-500.0,0.00041205,120]
[423401528,1780084687000,-845.37,0.00041205,120]
[423401531,1780084687000,-500.0,0.00041205,120]
[423401526,1780084687000,-561.16,0.00041205,120]
[423401525,1780084687000,-500.0,0.00041205,120]
[423401527,1780084687000,-174.10274025,0.00041205,120]
[423401532,1780084687000,-531.02885869,0.00041205,120]
[423401524,1780084687000,-655.38,0.00041205,120]
[423401535,1780084687000,-647.13,0.00041205,120]
[423401541,1780084687000,-1076.54,0.00041205,120]
[423401540,1780084687000,-500.0,0.00041205,120]
[423401538,1780084687000,-500.0,0.00041205,120]
[423401533,1780084687000,-500.0,0.00041205,120]
[423401536,1780084687000,-500.0,0.00041205,120]
[423401537,1780084687000,-500.0,0.00041205,120]
[423401534,1780084687000,-351.19895872,0.00041205,60]
[423401539,1780084687000,-500.0,0.00041205,120]
[423401542,1780084688000,-1426.45,0.00041205,120]
[423401544,1780084688000,-1395.21,0.00041205,120]
[423401543,1780084688000,-500.0,0.00041205,120]
[423401545,1780084688000,-1530.88,0.00041205,120]
[423401546,1780084688000,-506.0932266,0.00041205,120]
[423401548,1780084688000,-598.58521484,0.00041205,120]
[423401547,1780084688000,-500.0,0.00041205,120]
[423401549,1780084688000,-500.0,0.00041205,120]
[423401550,1780084688000,-1177.89,0.00041205,120]
[423401561,1780084688000,-500.0,0.00041205,120]
[423401551,1780084688000,-500.0,0.00041205,120]
[423401560,1780084688000,-500.0,0.00041205,120]
[423401559,1780084688000,-621.01,0.00041205,120]
[423401557,1780084688000,-500.0,0.00041205,120]
[423401552,1780084688000,-2512.03,0.00041205,120]
[423401556,1780084688000,-500.0,0.00041205,120]
[423401555,1780084688000,-1034.39,0.00041205,120]
[423401553,1780084688000,-1576.36,0.00041205,120]
[423401554,1780084688000,-500.0,0.00041205,120]
[423401558,1780084688000,-500.0,0.00041205,120]
[423401562,1780084689000,-500.0,0.00041205,120]
[423401564,1780084689000,-500.0,0.00041205,120]
[423401563,1780084689000,-509.64,0.00041205,120]
[423401566,1780084689000,-500.0,0.00041205,120]
[423401565,1780084689000,-500.0,0.00041205,120]
[423401567,1780084689000,-754.91,0.00041205,120]
[423401568,1780084689000,-500.0,0.00041205,120]
[423401569,1780084689000,-500.0,0.00041205,120]
[423401570,1780084689000,-1276.13,0.00041205,120]
[423401571,1780084689000,-1497.67,0.00041205,120]
[423401580,1780084689000,-500.0,0.00041205,120]
[423401579,1780084689000,-308.77297963,0.00041205,120]
[423401578,1780084689000,-500.0,0.00041205,120]
[423401577,1780084689000,-500.0,0.00041205,120]
[423401572,1780084689000,-500.0,0.00041205,120]
[423401576,1780084689000,-500.0,0.00041205,120]
[423401574,1780084689000,-915.69,0.00041205,120]
[423401573,1780084689000,-1107.45,0.00041205,120]
[423401575,1780084689000,-514.01,0.00041205,120]
[423401589,1780084690000,-500.0,0.00041205,120]
[423401581,1780084690000,-500.0,0.00041205,120]
[423401583,1780084690000,-571.39,0.00041205,120]
[423401584,1780084690000,-500.0,0.00041205,120]
[423401586,1780084690000,-500.0,0.00041205,120]
[423401585,1780084690000,-500.0,0.00041205,120]
[423401587,1780084690000,-2254.44,0.00041205,120]
[423401588,1780084690000,-500.0,0.00041205,120]
[423401582,1780084690000,-500.0,0.00041205,120]
[423401590,1780084690000,-500.0,0.00041205,120]
[423401591,1780084690000,-2175.95,0.00041205,120]
[423401594,1780084690000,-647.11,0.00041205,120]
[423401593,1780084690000,-562.06756206,0.00041205,120]
[423401596,1780084690000,-500.0,0.00041205,120]
[423401595,1780084690000,-1378.28,0.00041205,120]
[423401597,1780084690000,-2575.44,0.00041205,120]
[423401598,1780084690000,-500.0,0.00041205,120]
[423401600,1780084690000,-1222.88,0.00041205,120]
[423401599,1780084690000,-530.6421312,0.00041205,120]
[423401592,1780084690000,-500.0,0.00041205,120]
[423401609,1780084691000,-500.0,0.00041205,120]
[423401606,1780084691000,-500.0,0.00041205,120]
[423401607,1780084691000,-1213.07,0.00041205,120]
[423401602,1780084691000,-500.0,0.00041205,120]
[423401604,1780084691000,-500.0,0.00041205,120]
[423401603,1780084691000,-500.0,0.00041205,120]
[423401601,1780084691000,-500.0,0.00041205,120]
[423401605,1780084691000,-280.90966857,0.00041205,120]
[423401608,1780084691000,-1619.99,0.00041205,120]
[423401611,1780084691000,-500.0,0.00041205,120]
[423401612,1780084691000,-500.0,0.00041205,120]
[423401619,1780084691000,-500.0,0.00041205,120]
[423401618,1780084691000,-988.32,0.00041205,120]
[423401616,1780084691000,-500.0,0.00041205,120]
[423401610,1780084691000,-1467.68,0.00041205,120]
[423401614,1780084691000,-500.0,0.00041205,120]
[423401615,1780084691000,-505.79,0.00041205,120]
[423401613,1780084691000,-1038.9,0.00041205,120]
[423401617,1780084691000,-500.0,0.00041205,120]
[423401621,1780084692000,-500.0,0.00041205,120]
[423401620,1780084692000,-500.0,0.00041205,120]
[423401622,1780084692000,-500.0,0.00041205,120]
[423401624,1780084692000,-500.0,0.00041205,120]
[423401623,1780084692000,-500.0,0.00041205,120]
[423401626,1780084692000,-500.0,0.00041205,120]
[423401627,1780084692000,-564.8,0.00041205,120]
[423401629,1780084692000,-2752.11,0.00041205,120]
[423401625,1780084692000,-2930.35,0.00041205,120]
[423401628,1780084692000,-500.0,0.00041205,120]
[423401631,1780084692000,-500.0,0.00041205,120]
[423401632,1780084692000,-500.0,0.00041205,120]
[423401633,1780084692000,-1534.3,0.00041205,120]
[423401634,1780084692000,-500.0,0.00041205,120]
[423401635,1780084692000,-500.0,0.00041205,120]
[423401636,1780084692000,-2094.38,0.00041205,120]
[423401638,1780084692000,-523.89,0.00041205,120]
[423401637,1780084692000,-810.86,0.00041205,120]
[423401630,1780084692000,-528.32,0.00041205,120]
[423401646,1780084693000,-1629.33,0.00041205,120]
[423401645,1780084693000,-500.0,0.00041205,120]
[423401644,1780084693000,-500.0,0.00041205,120]
[423401647,1780084693000,-1215.81,0.00041205,120]
[423401641,1780084693000,-652.06,0.00041205,120]
[423401642,1780084693000,-500.0,0.00041205,120]
[423401640,1780084693000,-757.58,0.00041205,120]
[423401643,1780084693000,-1376.62,0.00041205,120]
[423401639,1780084693000,-500.0,0.00041205,120]
[423401648,1780084693000,-729.54,0.00041205,120]
[423401650,1780084693000,-500.0,0.00041205,120]
[423401652,1780084693000,-2041.14,0.00041205,120]
[423401651,1780084693000,-500.0,0.00041205,120]
[423401653,1780084693000,-500.0,0.00041205,120]
[423401656,1780084693000,-538.51289409,0.00041205,120]
[423401655,1780084693000,-500.0,0.00041205,120]
[423401657,1780084693000,-1443.76,0.00041205,120]
[423401658,1780084693000,-500.0,0.00041205,120]
[423401649,1780084693000,-500.0,0.00041205,120]
[423401659,1780084694000,-500.0,0.00041205,120]
[423401660,1780084694000,-500.0,0.00041205,120]
[423401661,1780084694000,-500.0,0.00041205,60]
[423401662,1780084694000,-1855.56,0.00041205,120]
[423401664,1780084694000,-661.05,0.00041205,120]
[423401663,1780084694000,-500.0,0.00041205,120]
[423401665,1780084694000,-500.0,0.00041205,120]
[423401666,1780084694000,-500.0,0.00041205,120]
[423401667,1780084694000,-1067.1,0.00041205,120]
[423401669,1780084694000,-500.0,0.00041205,120]
[423401670,1780084694000,-500.0,0.00041205,120]
[423401671,1780084694000,-500.0,0.00041205,120]
[423401672,1780084694000,-500.0,0.00041205,120]
[423401673,1780084694000,-500.0,0.00041205,120]
[423401674,1780084694000,-500.0,0.00041205,120]
[423401675,1780084694000,-626.35293841,0.00041205,120]
[423401668,1780084694000,-500.0,0.00041205,120]
[423401683,1780084695000,-500.0,0.00041205,120]
[423401682,1780084695000,-854.37,0.00041205,120]
[423401680,1780084695000,-1922.59,0.00041205,120]
[423401676,1780084695000,-616.36,0.00041205,120]
[423401678,1780084695000,-567.37,0.00041205,120]
[423401679,1780084695000,-500.0,0.00041205,120]
[423401677,1780084695000,-500.0,0.00041205,120]
[423401681,1780084695000,-1514.0,0.00041205,120]
[423401684,1780084695000,-500.0,0.00041205,120]
[423401689,1780084695000,-509.44,0.00041205,120]
[423401687,1780084695000,-500.0,0.00041205,120]
[423401685,1780084695000,-500.0,0.00041205,120]
[423401694,1780084695000,-500.0,0.00041205,120]
[423401692,1780084695000,-500.0,0.00041205,120]
[423401693,1780084695000,-500.0,0.00041205,120]
[423401690,1780084695000,-500.0,0.00041205,120]
[423401691,1780084695000,-500.0,0.00041205,120]
[423401688,1780084695000,-500.0,0.00041205,120]
[423401686,1780084695000,-500.0,0.00041205,120]
[423401695,1780084696000,-500.0,0.00041205,120]
[423401696,1780084696000,-534.28,0.00041205,120]
[423401698,1780084696000,-500.0,0.00041205,120]
[423401697,1780084696000,-1096.64,0.00041205,120]
[423401700,1780084696000,-500.0,0.00041205,120]
[423401699,1780084696000,-500.0,0.00041205,120]
[423401702,1780084696000,-500.0,0.00041205,120]
[423401703,1780084696000,-1336.22,0.00041205,120]
[423401701,1780084696000,-500.0,0.00041205,120]
[423401705,1780084696000,-500.0,0.00041205,120]
[423401713,1780084696000,-500.0,0.00041205,120]
[423401704,1780084696000,-1208.52,0.00041205,120]
[423401711,1780084696000,-1281.83,0.00041205,60]
[423401710,1780084696000,-500.0,0.00041205,120]
[423401712,1780084696000,-500.0,0.00041205,120]
[423401707,1780084696000,-726.72,0.00041205,120]
[423401708,1780084696000,-570.29,0.00041205,120]
[423401706,1780084696000,-745.76,0.00041205,120]
[423401709,1780084696000,-500.0,0.00041205,120]
[423401721,1780084697000,-879.08,0.00041205,120]
[423401714,1780084697000,-500.0,0.00041205,120]
[423401715,1780084697000,-500.0,0.00041205,120]
[423401716,1780084697000,-379.61594243,0.00041205,120]
[423401717,1780084697000,-500.0,0.00041205,120]
[423401719,1780084697000,-500.0,0.00041205,120]
[423401718,1780084697000,-500.0,0.00041205,120]
[423401723,1780084697000,-500.0,0.00041205,120]
[423401720,1780084697000,-500.0,0.00041205,120]
[423401724,1780084697000,-1285.51,0.00041205,120]
[423401730,1780084697000,-1243.25,0.00041205,120]
[423401729,1780084697000,-500.0,0.00041205,120]
[423401728,1780084697000,-769.78,0.00041205,120]
[423401732,1780084697000,-500.0,0.00041205,120]
[423401726,1780084697000,-500.0,0.00041205,120]
[423401731,1780084697000,-665.8,0.00041205,120]
[423401725,1780084697000,-609.29,0.00041205,120]
[423401727,1780084697000,-933.56,0.00041205,120]
[423401722,1780084697000,-500.0,0.00041205,120]
[423401740,1780084698000,-500.0,0.00041205,120]
[423401733,1780084698000,-500.0,0.00041205,120]
[423401734,1780084698000,-637.39,0.00041205,120]
[423401735,1780084698000,-614.87012094,0.00041205,120]
[423401736,1780084698000,-1063.17,0.00041205,120]
[423401737,1780084698000,-500.0,0.00041205,120]
[423401738,1780084698000,-927.5,0.00041205,120]
[423401739,1780084698000,-500.0,0.00041205,120]
[423401741,1780084698000,-545.76,0.00041205,120]
[423401743,1780084698000,-864.63,0.00041205,120]
[423401744,1780084698000,-500.0,0.00041205,120]
[423401745,1780084698000,-812.35,0.00041205,120]
[423401746,1780084698000,-500.0,0.00041205,120]
[423401747,1780084698000,-586.79,0.00041205,120]
[423401749,1780084698000,-750.51,0.00041205,120]
[423401748,1780084698000,-500.0,0.00041205,120]
[423401750,1780084698000,-1172.38,0.00041205,120]
[423401742,1780084698000,-500.0,0.00041205,120]
[423401758,1780084699000,-2371.97,0.00041205,120]
[423401755,1780084699000,-2146.7,0.00041205,120]
[423401756,1780084699000,-1846.52,0.00041205,120]
[423401757,1780084699000,-500.0,0.00041205,120]
[423401752,1780084699000,-500.0,0.00041205,120]
[423401751,1780084699000,-500.0,0.00041205,120]